bitfinex/quotes_ETHUSD_20250106
["timestamp","ask_amount","ask_price","bid_price","bid_amount"]
[1736179711987,2.6889,3719.0,3718.1,0.152]
[1736179712347,1.97793308,3719.1,3718.1,0.152]
[1736179712551,2.78854,3719.5,3718.4,2.68932]
[1736179712863,2.78854,3719.5,3718.5,2.68924]
[1736179713100,0.1,3719.5,3718.3,0.02689099]
[1736179713264,0.1,3719.5,3718.7,2.68909]
[1736179713449,0.1,3719.5,3718.8,0.7359]
[1736179713649,0.1,3719.5,3718.9,0.342499]
[1736179714486,0.1,3719.5,3719.0,0.02688866]
[1736179714662,0.1,3719.5,3719.4,2.6886]
[1736179715264,0.1,3719.5,3719.4,3.4245]
[1736179715945,0.02892997,3720.0,3719.5,0.7359]
[1736179716149,0.02892997,3720.0,3719.9,6.51481652]
[1736179716507,2.54067652,3722.0,3721.0,0.25]
[1736179716806,3.54641477,3722.8,3719.9,3.24267652]
[1736179716807,2.6868,3721.9,3721.2,0.25]
[1736179716950,3.54641477,3722.8,3720.8,0.25]
[1736179716951,2.54067652,3721.7,3720.8,0.25]
[1736179717148,2.68718,3721.4,3720.8,0.25]
[1736179717468,0.54549316,3722.1,3721.2,0.25]
[1736179717469,2.68703,3721.6,3721.2,0.25]
[1736179718498,2.68716,3721.4,3721.0,0.25]
[1736179718697,0.268716,3721.3,3721.0,0.25]
[1736179718865,2.68766,3720.7,3720.6,0.25]
[1736179719072,2.68766,3720.7,3720.3,0.25]
[1736179719285,2.68781,3720.5,3720.3,0.25]
[1736179720680,1.3715,3721.1,3720.4,0.25]
[1736179721011,2.68732,3721.2,3720.6,0.25]
[1736179721377,2.68732,3721.2,3721.0,0.25]
[1736179721818,2.68737,3721.1,3721.0,0.25]
[1736179722655,2.68724,3721.3,3721.2,0.25]
[1736179726763,2.68724,3721.3,3721.2,0.401]
[1736179727064,2.68724,3721.3,3721.2,0.25]
[1736179727260,2.68724,3721.3,3720.9,0.25]
[1736179727482,2.68781,3720.5,3720.4,0.25]
[1736179728059,2.68781,3720.5,3720.2,0.25]
[1736179728244,2.68781,3720.5,3719.9,0.151]
[1736179728245,2.68817,3720.0,3719.9,0.151]
[1736179728558,2.68838,3719.7,3719.6,1.1113261]
[1736179728933,2.68853,3719.5,3719.4,0.25]
[1736179729319,2.68875,3719.2,3719.1,0.151]
[1736179729658,2.68853,3719.5,3719.2,0.25]
[1736179730007,2.68853,3719.5,3719.4,0.25]
[1736179730306,3.30715581,3720.4,3719.4,0.25]
[1736179730307,1.3507,3720.1,3719.4,0.25]
[1736179730519,2.68842,3719.7,3719.4,0.25]
[1736179730669,2.68853,3719.5,3719.4,0.25]
[1736179731374,2.6886,3719.4,3719.3,0.151]
[1736179732474,2.68853,3719.5,3719.2,0.25]
[1736179732675,2.68867,3719.3,3719.2,0.25]
[1736179732973,2.68867,3719.3,3719.2,300.25]
[1736179733977,2.68853,3719.6,3719.5,0.25]
[1736179734178,4.03886,3720.1,3719.8,0.25]
[1736179734471,2.68824,3719.9,3719.8,0.25]
[1736179734664,1.93938181,3720.5,3719.8,0.25]
[1736179734869,2.68805,3720.2,3719.8,0.25]
[1736179735096,2.68805,3720.2,3720.1,0.25]
[1736179735879,0.53418653,3720.8,3720.1,0.25]
[1736179736084,2.68773,3720.6,3720.5,0.25]
[1736179736727,2.68759,3720.8,3720.5,0.25]
[1736179736883,2.68773,3720.6,3720.5,0.25]
[1736179737563,3.16334581,3722.5,3720.9,0.25]
[1736179737765,2.68724,3721.3,3720.9,0.25]
[1736179737979,1.3635,3721.9,3720.9,0.25]
[1736179738185,2.68723,3721.3,3721.2,0.25]
[1736179739011,2.68737,3721.1,3721.0,0.25]
[1736179739317,2.68737,3721.1,3721.0,35.25]
[1736179742504,2.68729,3721.3,3721.2,0.25]
[1736179742673,2.68723,3721.3,3721.2,0.25]
[1736179742874,2.68708,3721.5,3721.0,0.25]
[1736179743098,2.68723,3721.3,3721.2,0.25]
[1736179743413,2.6871,3721.5,3721.0,0.25]
[1736179743723,2.6871,3721.5,3721.4,35.25]
[1736179745328,2.6871,3721.5,3721.4,35.0]
[1736179745626,2.6871,3721.5,3721.4,35.25]
[1736179746488,2.68696,3721.7,3721.4,35.0]
[1736179746735,2.68696,3721.7,3721.6,0.25]
[1736179747090,2.68696,3721.7,3721.6,35.25]
[1736179747932,3.21498598,3721.9,3721.6,35.25]
[1736179748145,2.68688,3721.8,3721.6,0.25]
[1736179748347,0.52816598,3721.9,3721.6,0.25]
[1736179748531,2.68694,3721.7,3721.6,0.25]
[1736179748842,3.21496598,3721.9,3721.6,0.25]
[1736179749045,2.6868,3721.9,3721.8,35.0]
[1736179750152,2.68678,3722.0,3721.8,36.92809298]
[1736179750350,3.23487096,3722.4,3722.0,7.31322]
[1736179750870,2.68647,3722.4,3722.3,35.0]
[1736179753653,4.15667,3722.4,3722.3,35.0]
[1736179755222,4.15667,3722.4,3722.3,35.25]
[1736179755641,2.68647,3722.4,3722.3,35.0]
[1736179756060,2.68647,3722.4,3722.3,35.25]
[1736179756765,2.68647,3722.4,3722.3,35.0]
[1736179757875,3.67444565,3722.4,3722.3,35.0]
[1736179758969,2.53420034,3722.4,3722.3,35.0]
[1736179759476,2.68647,3722.4,3722.3,35.0]
[1736179760348,2.68647,3722.4,3722.3,35.25]
[1736179762279,0.40452101,3723.0,3722.3,35.25]
[1736179762445,0.40452101,3723.0,3722.3,2.96757592]
[1736179762642,2.68622,3722.7,3722.3,0.25]
[1736179762949,2.68631,3722.6,3722.3,0.25]
[1736179763174,0.40452101,3723.0,3722.4,1.4659]
[1736179763375,0.43139989,3723.4,3723.3,1.7159]
[1736179763707,0.43139989,3723.4,3723.3,0.25]
[1736179763708,3.11710989,3723.4,3723.3,0.25]
[1736179764006,2.68586,3723.2,3723.1,0.25]
[1736179764314,0.43139989,3723.4,3723.1,0.25]
[1736179764488,3.11717989,3723.4,3723.3,35.0]
[1736179764686,0.43139989,3723.4,3723.3,35.25]
[1736179765312,0.42816615,3723.4,3723.3,36.6757]
[1736179765479,0.42816615,3723.4,3723.3,39.39327592]
[1736179766661,0.42816615,3723.4,3723.3,36.6757]
[1736179766857,0.42816615,3723.4,3723.3,35.25]
[1736179767056,3.11387615,3723.4,3723.3,35.25]
[1736179767295,3.11387615,3723.4,3723.3,35.0]
[1736179767501,2.68591,3723.2,3722.6,0.25]
[1736179767703,2.68622,3722.7,3722.6,0.25]
[1736179768514,2.68622,3722.7,3722.6,35.25]
[1736179769361,2.68609,3722.9,3722.8,0.25]
[1736179769604,1.3946,3723.4,3722.8,0.25]
[1736179769805,2.68607,3722.9,3722.8,0.25]
[1736179769973,2.68607,3722.9,3722.8,35.25]
[1736179770502,2.68607,3722.9,3722.8,36.5845663]
[1736179770984,2.68592,3723.2,3723.1,0.25]
[1736179771156,2.68578,3723.4,3723.1,0.25]
[1736179771359,0.45375933,3723.5,3723.3,0.25]
[1736179771798,3.13939933,3723.5,3723.4,35.0]
[1736179775206,0.45375933,3723.5,3723.4,35.71357365]
[1736179775880,0.45375933,3723.5,3723.4,37.21117365]
[1736179777812,0.45375933,3723.5,3723.4,40.44688365]
[1736179778175,0.45375933,3723.5,3723.4,39.89688365]
[1736179778793,0.05821715,3723.8,3723.7,1.7744]
[1736179779107,0.05821715,3723.8,3723.7,7.20432622]
[1736179779307,0.05821715,3723.8,3723.7,4.4599]
[1736179779481,0.05821715,3723.8,3723.7,39.4599]
[1736179780204,0.05821715,3723.8,3723.7,40.0099]
[1736179780377,0.52083765,3724.1,3723.9,12.86830464]
[1736179780573,0.52083765,3724.1,3724.0,4.52148]
[1736179780777,0.52083765,3724.1,3724.0,3.63017846]
[1736179781006,0.52083765,3724.1,3724.0,36.8630494]
[1736179781313,0.52083765,3724.1,3724.0,39.52148]
[1736179781664,0.52083765,3724.1,3724.0,36.8362]
[1736179781894,0.52083765,3724.1,3724.0,40.07148]
[1736179783098,0.52083765,3724.1,3724.0,39.52148]
[1736179783298,0.52083765,3724.1,3724.0,42.23905592]
[1736179783536,0.52083765,3724.1,3724.0,42.78905592]
[1736179785236,0.52083765,3724.1,3724.0,39.40277592]
[1736179785426,0.52083765,3724.1,3724.0,42.08805592]
[1736179785644,0.52083765,3724.1,3724.0,39.55377592]
[1736179786554,0.52083765,3724.1,3724.0,39.40277592]
[1736179786756,0.52083765,3724.1,3724.0,35.25]
[1736179787755,0.58791597,3724.7,3724.6,0.25]
[1736179788356,0.58791597,3724.7,3724.6,35.25]
[1736179793222,0.53381597,3724.7,3724.6,35.401]
[1736179796030,0.67735373,3725.4,3724.6,35.401]
[1736179796673,0.67735373,3725.4,3723.9,0.52852861]
[1736179796674,1.82938527,3727.0,3725.1,0.89]
[1736179796977,1.05746421,3728.6,3725.1,0.89]
[1736179796978,8.36360744,3731.8,3725.1,0.89]
[1736179797128,8.36360744,3731.8,3724.7,14.83885773]
[1736179797129,5.09400661,3729.7,3729.5,2.93132]
[1736179797336,0.02131523,3729.8,3729.7,2.93118]
[1736179797573,84.3466175,3730.0,3729.9,3.49603]
[1736179797773,64.62049627,3730.0,3729.9,3.66774]
[1736179797932,51.21849627,3730.0,3729.9,39.63235378]
[1736179798131,27.91543206,3730.0,3729.9,44.8374465]
[1736179798332,2.22881213,3731.9,3731.8,0.25]
[1736179798535,1.37196243,3733.0,3732.0,3.25]
[1736179798762,1.30831773,3733.1,3732.1,5.5299165]
[1736179799079,2.67682,3735.8,3732.1,5.5299165]
[1736179799080,1.34821819,3736.8,3734.2,2.6779]
[1736179799398,1.31482942,3737.1,3733.8,0.55]
[1736179799582,1.3928409,3737.5,3734.4,3.44895589]
[1736179799761,1.33959975,3737.7,3736.5,1.614]
[1736179799961,1.33959975,3737.7,3737.6,2.67551]
[1736179800162,2.47030647,3737.8,3737.4,35.0]
[1736179800334,2.7216041,3737.8,3735.2,2.67717]
[1736179800537,2.7216041,3737.8,3726.0,14.37]
[1736179800538,1.34077784,3739.1,3736.9,2.67597]
[1736179800736,1.30148039,3738.7,3738.1,35.0]
[1736179800938,0.25,3737.5,3736.3,1.07338427]
[1736179801137,0.15996,3737.5,3736.4,0.02675638]
[1736179801338,0.15996,3737.5,3732.1,2.0]
[1736179801339,0.25,3733.9,3732.1,2.0]
[1736179801540,0.25,3733.9,3730.7,8.86]
[1736179801541,0.25,3733.9,3733.2,0.25088962]
[1736179801738,0.02675645,3734.5,3732.2,0.08365609]
[1736179801937,0.5283494,3734.4,3732.3,35.0]
[1736179802151,0.02675645,3734.3,3732.3,35.0]
[1736179802443,2.67784,3734.4,3732.4,0.08371367]
[1736179802636,3.44895589,3733.1,3732.4,0.08371367]
[1736179802886,3.79385148,3733.1,3732.8,35.0]
[1736179803855,3.44895589,3733.1,3731.2,1.3779]
[1736179804072,3.44895589,3733.7,3731.9,2.67955]
[1736179804402,3.44895589,3733.1,3731.2,1.3779]
[1736179804644,3.44895589,3733.1,3731.5,2.67985]
[1736179804936,1.4032,3733.7,3733.0,35.0]
[1736179805088,3.44895589,3733.1,3730.4,1.3779]
[1736179805287,3.44895589,3732.3,3730.4,1.3779]
[1736179805512,3.44895589,3732.3,3730.5,0.02679662]
[1736179805720,3.44895589,3732.9,3730.6,2.68047]
[1736179805927,3.44895589,3732.9,3730.4,1.3779]
[1736179806131,2.67906,3732.7,3730.5,0.405863]
[1736179806285,3.44895589,3731.9,3729.7,1.3779]
[1736179806685,3.44895589,3731.9,3731.8,35.0]
[1736179806887,3.44895589,3732.4,3731.8,35.0]
[1736179807125,3.44895589,3732.4,3730.5,0.55]
[1736179807294,0.61280859,3732.3,3731.0,1.072374]
[1736179807499,0.61280859,3732.3,3732.2,35.0]
[1736179807827,2.67921,3732.5,3732.2,35.0]
[1736179807981,2.67921,3732.5,3731.0,1.072374]
[1736179808192,2.67921,3732.5,3731.1,0.02679655]
[1736179808394,2.67921,3732.5,3732.4,35.0]
[1736179808796,2.67973,3731.8,3729.6,3.44895589]
[1736179809042,1.3369,3731.5,3729.8,0.48268559]
[1736179809213,4.78585589,3731.5,3729.8,0.04902599]
[1736179809435,3.44895589,3731.0,3729.8,0.04902599]
[1736179809651,2.68031,3730.9,3729.8,0.04902599]
[1736179809825,1.3369,3731.5,3729.8,0.04902599]
[1736179810031,2.68033,3730.9,3729.8,0.04902599]
[1736179810200,2.68011,3731.2,3730.8,35.0]
[1736179810550,2.68019,3731.1,3730.8,35.0]
[1736179810744,2.68017,3731.1,3729.8,0.04902599]
[1736179810907,0.401701,3731.2,3729.8,0.04902599]
[1736179811111,1.3369,3731.5,3729.8,0.04902599]
[1736179811112,2.68055,3730.6,3729.8,0.04902599]
[1736179811313,2.68013,3731.2,3729.8,0.04902599]
[1736179811532,2.68013,3731.2,3730.2,3.44895589]
[1736179811736,2.6801,3731.2,3731.1,35.0]
[1736179811896,3.349795,3731.2,3731.1,35.0]
[1736179812301,0.669695,3731.2,3731.1,35.0]
[1736179812531,2.67967,3731.8,3731.1,35.0]
[1736179812713,2.67967,3731.8,3730.4,0.5575]
[1736179812934,1.4316,3732.2,3730.5,0.04901679]
[1736179813315,2.67984,3731.6,3730.5,0.04901679]
[1736179813515,2.67984,3731.6,3730.5,0.42561473]
[1736179813863,2.67984,3731.6,3731.5,35.0]
[1736179815556,2.67978,3731.7,3731.5,35.0]
[1736179815721,2.67994,3731.5,3730.8,3.44895589]
[1736179815903,0.01138212,3731.8,3730.8,3.44895589]
[1736179816104,2.67981,3731.6,3730.5,0.04901679]
[1736179816447,2.68036,3730.9,3730.5,0.04901679]
[1736179816647,2.68036,3730.9,3730.8,35.0]
[1736179817303,0.01138212,3731.8,3730.8,35.0]
[1736179817504,2.67981,3731.6,3730.6,0.03498871]
[1736179817730,2.67981,3731.6,3730.6,0.06178947]
[1736179818060,2.67981,3731.6,3731.5,35.0]
[1736179818241,2.94892921,3731.6,3731.5,35.0]
[1736179818547,2.68046,3730.7,3730.6,0.03189889]
[1736179819305,2.68046,3730.7,3730.6,35.03189889]
[1736179820173,2.68046,3730.7,3730.5,0.04901679]
[1736179820600,0.01138212,3730.9,3730.5,0.04901679]
[1736179820826,2.68046,3730.7,3730.5,0.04901679]
[1736179821024,0.26918421,3730.6,3730.5,0.04901679]
[1736179821186,2.68099,3730.0,3729.8,3.44895589]
[1736179821373,2.68107,3729.9,3729.3,3.44895589]
[1736179821572,2.68107,3729.9,3729.8,35.0]
[1736179821977,2.68107,3729.9,3729.8,33.0]
[1736179822280,2.68212,3728.4,3727.9,1.3779]
[1736179822481,2.68132,3729.5,3727.7,3.44895589]
[1736179822832,1.4524,3729.8,3728.2,3.44895589]
[1736179822977,4.1335,3729.8,3729.7,35.0]
[1736179824979,1.3303,3730.4,3729.7,35.0]
[1736179825179,1.3303,3730.4,3729.4,0.01777781]
[1736179825494,2.68116,3729.8,3729.4,0.04458739]
[1736179825694,1.3303,3730.4,3729.4,0.04458739]
[1736179826093,1.3303,3730.4,3730.3,35.0]
[1736179826735,2.69204212,3730.5,3730.3,35.0]
[1736179826880,2.69204212,3730.5,3729.7,3.44895589]
[1736179826881,0.01138212,3730.5,3729.7,3.44895589]
[1736179827086,0.01138212,3730.5,3729.9,1.4143]
[1736179827283,0.01138212,3730.5,3730.4,35.0]
[1736179827532,0.01138212,3730.5,3730.4,40.68067]
[1736179827688,0.01138212,3730.5,3730.4,40.8284424]
[1736179827894,1.3328,3732.6,3730.8,1.6238]
[1736179828092,2.67938,3732.3,3730.9,3.63813069]
[1736179828283,2.67975,3731.7,3730.9,3.74410172]
[1736179828496,2.67968,3731.8,3731.6,35.0]
[1736179828826,2.67951,3732.1,3731.6,35.0]
[1736179829030,2.67951,3732.1,3730.9,3.66034742]
[1736179829330,2.67939,3732.2,3731.7,0.08374619]
[1736179829545,4.01191,3732.6,3732.0,35.0]
[1736179829679,1.3328,3732.6,3732.0,35.0]
[1736179829882,1.3328,3732.6,3731.4,3.44895589]
[1736179830123,1.3328,3732.6,3731.5,0.02679268]
[1736179830327,4.01189,3732.6,3732.5,35.0]
[1736179830628,2.67909,3732.6,3732.5,35.0]
[1736179831682,2.67909,3732.7,3731.5,0.34757486]
[1736179831883,2.67883,3733.0,3731.9,3.44895589]
[1736179832145,2.67919,3732.5,3731.9,3.44895589]
[1736179832533,3.16519127,3733.0,3732.0,0.02679155]
[1736179832534,0.03913777,3732.4,3732.0,0.02679155]
[1736179832711,0.03913777,3732.4,3732.3,35.0]
[1736179833235,2.67893,3732.9,3732.3,35.0]
[1736179833386,0.53548269,3733.2,3732.0,1.5822]
[1736179833589,2.67924,3732.4,3731.9,3.44895589]
[1736179833935,2.67904,3732.7,3732.3,35.0]
[1736179834148,2.67873,3733.1,3732.3,35.0]
[1736179834439,2.6791,3732.6,3731.9,3.79385148]
[1736179834587,2.67873,3733.1,3732.0,0.02679044]
[1736179834799,2.67873,3733.1,3733.0,35.0]
[1736179835611,2.7181036,3733.1,3733.0,35.0]
[1736179835943,3.31131823,3733.1,3733.0,35.0]
[1736179836441,2.67928,3732.4,3731.5,1.97767851]
[1736179836745,2.6794,3732.2,3731.5,1.97767851]
[1736179836914,2.67954,3732.0,3731.5,1.63010365]
[1736179837112,2.67968,3731.8,3731.5,0.04900365]
[1736179837408,1.6583,3732.5,3731.7,35.0]
[1736179837615,2.67917,3732.5,3731.7,35.0]
[1736179837829,1.6583,3733.0,3731.5,0.04900365]
[1736179838035,1.6583,3733.0,3731.5,0.04524191]
[1736179838250,2.67926,3732.4,3731.5,0.04524191]
[1736179838495,2.67932,3732.3,3731.5,0.04524191]
[1736179838651,1.6583,3733.0,3731.6,0.02679249]
[1736179838852,2.67917,3732.5,3731.6,0.02679249]
[1736179839165,4.33715,3733.0,3731.5,0.04524191]
[1736179839339,2.6791,3732.6,3731.5,0.04524191]
[1736179839538,2.67917,3732.5,3731.5,0.04524191]
[1736179839743,2.72516241,3732.5,3731.5,0.04524191]
[1736179840084,0.04599241,3732.5,3731.6,0.37621083]
[1736179840237,0.04599241,3732.5,3731.7,1.6424]
[1736179840436,2.67904,3732.7,3731.9,3.44895589]
[1736179840686,2.67904,3732.7,3731.7,1.6424]
[1736179840687,0.04598119,3732.6,3732.0,0.02679021]
[1736179840867,2.67918,3732.5,3731.7,1.6424]
[1736179841057,2.67918,3732.5,3731.8,0.57539272]
[1736179841381,0.04446552,3732.4,3731.8,0.54860176]
[1736179841587,2.72370552,3732.4,3731.8,0.54860176]
[1736179841741,2.72370552,3732.4,3731.7,1.6424]
[1736179842452,0.04446552,3732.4,3731.7,1.6424]
[1736179842782,0.04446552,3732.4,3731.8,0.02679185]
[1736179842989,2.67873,3733.2,3732.1,3.44895589]
[1736179843154,0.04443425,3732.3,3732.1,3.44895589]
[1736179843482,2.67903,3732.7,3732.2,0.02678804]
[1736179843647,2.67925,3732.4,3731.7,1.6424]
[1736179843852,2.72375425,3732.3,3731.7,1.6424]
[1736179844086,0.04443425,3732.3,3731.7,1.6424]
[1736179844449,0.1661692,3733.4,3731.7,1.6424]
[1736179844653,0.04441148,3732.2,3731.8,0.02679251]
[1736179844850,2.67881,3733.0,3731.8,0.02679251]
[1736179845051,2.67888,3732.9,3731.8,0.02679251]
[1736179845388,0.04457085,3732.9,3731.8,0.02679251]
[1736179845587,2.67897,3732.8,3731.8,0.46622295]
[1736179845745,0.57401239,3732.9,3731.9,2.67958]
[1736179845952,0.04457085,3732.9,3731.9,2.67958]
[1736179846155,0.04457085,3732.9,3732.0,0.0267881]
[1736179846480,0.04454808,3732.8,3732.1,6.12834589]
[1736179846684,0.04454808,3732.8,3732.6,3.44895589]
[1736179846995,0.04454808,3732.8,3732.7,0.02678442]
[1736179847154,0.04457085,3732.9,3732.8,2.67895]
[1736179847465,0.04457085,3732.9,3732.8,2.72793658]
[1736179847661,0.04457085,3732.9,3732.8,3.27793658]
[1736179847873,0.04457085,3732.9,3732.8,4.40879703]
[1736179848093,0.04457085,3732.9,3732.8,7.42379703]
[1736179848401,0.04457085,3732.9,3732.8,7.39701683]
[1736179848606,0.04457085,3732.9,3732.8,0.04898658]
[1736179849104,0.08942054,3732.9,3732.8,0.04898658]
[1736179849316,0.04457085,3732.9,3732.2,1.6606]
[1736179849509,0.08943303,3732.9,3732.2,1.6606]
[1736179849750,0.04457085,3732.9,3731.6,3.44895589]
[1736179849905,2.72348085,3732.9,3731.7,0.02679223]
[1736179850107,2.95129809,3732.8,3731.6,3.44895589]
[1736179850310,2.67921,3732.5,3731.7,0.02679243]
[1736179850510,0.31721808,3732.8,3731.6,3.44895589]
[1736179850511,2.67916,3732.6,3731.6,3.44895589]
[1736179850709,0.04480025,3732.4,3731.6,3.44895589]
[1736179850912,2.72399302,3732.5,3731.6,3.44895589]
[1736179851202,0.04455398,3732.3,3731.5,1.5258]
[1736179851356,0.27234809,3732.8,3731.5,2.05314609]
[1736179851357,2.72384675,3732.4,3731.5,2.05314609]
[1736179851560,0.04453121,3732.2,3731.1,3.44895589]
[1736179851755,2.67939,3732.2,3731.1,3.44895589]
[1736179851961,0.04450844,3732.1,3731.1,3.44895589]
[1736179852183,0.04450844,3732.1,3731.2,0.02679431]
[1736179852387,3.22541765,3732.3,3731.3,0.50969502]
[1736179852902,2.72381927,3732.2,3731.6,0.5]
[1736179853304,2.72381927,3732.2,3731.7,0.02679433]
[1736179853532,2.67945,3732.1,3731.6,0.5]
[1736179853694,0.04443927,3732.2,3731.6,0.5]
[1736179853893,0.54604765,3732.3,3731.6,0.5]
[1736179853894,0.04438013,3732.0,3731.6,0.5]
[1736179854097,2.67974,3731.7,3731.6,0.5]
[1736179854423,4.540814,3731.7,3731.6,0.5]
[1736179854624,4.58501925,3731.7,3731.6,0.5]
[1736179855200,4.31704525,3731.7,3731.6,0.5]
[1736179857129,0.04420525,3731.7,3731.6,0.5]
[1736179857487,1.6322,3732.3,3731.6,0.5]
[1736179857801,2.67971,3731.8,3731.6,0.5]
[1736179858015,2.67974,3731.7,3731.6,0.5]
[1736179858332,0.04393771,3731.7,3731.6,0.5]
[1736179858638,2.67974,3731.7,3731.6,0.5]
[1736179858927,2.6804,3730.8,3729.8,1.5842]
[1736179859095,4.30982615,3731.7,3729.9,0.02680464]
[1736179859096,1.63008615,3731.7,3729.9,0.02680464]
[1736179859285,0.7493022,3731.9,3729.3,1.0677309]
[1736179859286,1.5864,3730.6,3729.3,1.0677309]
[1736179859754,2.6809,3730.1,3729.3,1.0677309]
[1736179860036,0.04288733,3730.0,3729.3,1.0677309]
[1736179860383,1.5864,3730.6,3729.9,35.0]
[1736179860643,2.68075,3730.3,3729.9,35.0]
[1736179860929,2.68061,3730.5,3729.2,4.2657]
[1736179861099,1.5265,3731.3,3729.3,0.18523056]
[1736179861302,1.5265,3731.3,3729.3,0.15842]
[1736179861303,0.04131248,3730.4,3729.3,0.15842]
[1736179861485,0.53934534,3730.9,3729.3,0.15842]
[1736179861933,3.21965534,3730.9,3730.8,35.0]
[1736179862138,4.74615534,3730.9,3730.8,35.0]
[1736179862317,2.68104,3729.9,3728.7,4.30758]
[1736179862720,2.68039,3730.8,3728.8,0.02681241]
[1736179863040,2.06584534,3730.9,3729.2,2.68154]
[1736179863192,2.06584534,3730.9,3729.3,0.61304959]
[1736179863392,2.68077,3730.3,3729.1,2.68156]
[1736179863703,2.06584534,3730.9,3730.2,35.0]
[1736179864038,2.68055,3730.6,3730.2,35.0]
[1736179864207,2.68055,3730.6,3729.4,2.68137]
[1736179864208,2.06584534,3730.9,3729.2,2.68904]
[1736179864409,3.21967534,3730.9,3729.8,1.6383]
[1736179864608,3.21965534,3730.9,3730.8,35.0]
[1736179865009,4.77895534,3730.9,3730.8,35.0]
[1736179866954,2.09864534,3730.9,3730.8,35.0]
[1736179867164,0.53934534,3730.9,3730.8,35.0]
[1736179867961,2.68004,3731.3,3730.8,35.0]
[1736179868262,0.5294679,3731.1,3730.3,2.68074]
[1736179868568,0.03979865,3731.0,3730.4,0.02680365]
[1736179868775,0.03979865,3731.0,3730.1,2.68089]
[1736179869068,0.03979865,3731.0,3730.9,35.0]
[1736179869420,0.23793884,3731.6,3730.9,35.0]
[1736179869654,2.6799,3731.5,3730.3,2.68068]
[1736179869854,0.04026977,3731.4,3730.5,2.6806]
[1736179870038,0.04026977,3731.4,3731.3,35.0]
[1736179870238,1.5795,3731.8,3731.3,35.0]
[1736179870443,4.25923,3731.8,3730.6,2.68048]
[1736179870728,0.0390085,3731.7,3730.7,0.29484732]
[1736179870927,0.0390085,3731.7,3731.6,35.0]
[1736179871145,3.22711173,3732.3,3731.6,35.0]
[1736179871346,0.54779173,3732.3,3731.0,2.68023]
[1736179871631,2.67981,3731.7,3730.4,4.32752]
[1736179871841,0.03789229,3731.6,3730.5,3.44895589]
[1736179872044,0.03789229,3731.6,3730.6,0.02680062]
[1736179872223,0.54779173,3732.3,3730.5,3.44895589]
[1736179872424,3.22710173,3732.3,3732.2,35.0]
[1736179872670,2.6799,3731.5,3730.5,3.44895589]
[1736179872979,2.67945,3732.1,3730.5,3.44895589]
[1736179873131,2.68011,3731.2,3730.4,1.6469]
[1736179873335,2.67982,3731.6,3730.4,4.32756]
[1736179873564,2.67982,3731.6,3730.5,3.44895589]
[1736179873760,2.67982,3731.6,3731.5,35.0]
[1736179874028,1.6426,3732.1,3731.5,35.0]
[1736179874228,0.54655881,3731.7,3730.9,2.6803]
[1736179874572,2.6796,3731.9,3730.9,2.6803]
[1736179874770,4.32205,3732.1,3731.6,35.0]
[1736179874957,3.21841884,3731.8,3731.6,35.0]
[1736179875269,2.67974,3731.7,3730.6,2.68046]
[1736179875572,0.03647942,3731.6,3730.5,3.44895589]
[1736179875870,0.03647942,3731.6,3730.6,2.70725933]
[1736179876092,0.03647942,3731.6,3731.5,35.0]
[1736179876603,0.53867884,3731.8,3731.5,35.0]
[1736179876803,0.53867884,3731.8,3730.7,2.68044]
[1736179876955,0.53867884,3731.8,3730.5,4.22661848]
[1736179877156,0.03656768,3731.7,3730.8,2.68035]
[1736179877355,0.03656768,3731.7,3730.6,0.85541385]
[1736179877596,0.03656768,3731.7,3730.5,6.12954589]
[1736179877813,2.71630768,3731.7,3731.6,35.0]
[1736179878349,4.33330768,3731.7,3731.6,35.0]
[1736179878581,4.29674,3731.7,3731.6,35.0]
[1736179878965,1.617,3731.7,3731.6,35.0]
[1736179879172,1.65242259,3731.7,3731.6,35.0]
[1736179879499,0.03542259,3731.7,3731.6,35.0]
[1736179879701,0.03542259,3731.7,3731.6,37.67981]
[1736179879921,5.39189865,3732.7,3731.6,37.67981]
[1736179879922,2.67912,3732.6,3731.6,35.0]
[1736179880132,1.617,3732.7,3731.7,0.02679431]
[1736179880290,0.0343741,3732.5,3732.0,2.67948]
[1736179880623,1.617,3732.7,3732.4,35.0]
[1736179881031,1.617,3732.7,3732.0,5.82156339]
[1736179881324,2.67902,3732.7,3732.0,3.72419973]
[1736179881528,2.67902,3732.7,3732.6,35.0]
[1736179881913,4.28832,3732.7,3732.6,35.0]
[1736179882727,4.32337877,3732.7,3732.6,35.0]
[1736179884396,4.32337877,3732.7,3731.2,2.68006]
[1736179884601,1.64435877,3732.7,3731.3,0.77765278]
[1736179884804,4.32338877,3732.7,3731.3,0.77765278]
[1736179885017,2.6791,3732.6,3731.5,2.67981]
[1736179885224,1.64435877,3732.7,3731.6,0.02679403]
[1736179885225,2.67919,3732.5,3731.6,0.02679403]
[1736179885439,0.03366967,3732.5,3731.8,2.67966]
[1736179885615,1.6093,3732.7,3731.9,0.02679208]
[1736179885939,0.54881381,3732.8,3732.6,35.0]
[1736179886287,2.6791,3732.6,3731.5,2.67987]
[1736179886534,0.03368967,3732.5,3731.5,2.67987]
[1736179886838,0.03368967,3732.5,3732.4,35.0]
[1736179887136,2.6791,3732.6,3732.4,35.0]
[1736179887304,2.6791,3732.6,3731.6,2.6798]
[1736179887509,2.67905,3732.7,3731.7,0.02679403]
[1736179887800,0.03342261,3732.5,3731.7,0.02679403]
[1736179888003,0.03345357,3732.6,3731.7,0.02679403]
[1736179888208,0.76626228,3732.8,3731.3,0.77765278]
[1736179888403,2.67906,3732.7,3731.3,0.77765278]
[1736179888732,2.71294338,3732.7,3732.6,35.0]
[1736179891112,0.03388338,3732.7,3732.6,35.0]
[1736179891701,2.67902,3732.7,3732.6,35.0]